[Event "Early-Titled-Tuesday-Blitz-February-13-2024"]
[Site "Chess.com"]
[Date "2024.02.13"]
[Round "9"]
[White "yaguigor"]
[Black "ExtremeLearner"]
[Result "0-1"]
[WhiteElo "2645"]
[BlackElo "2380"]
[TimeControl "180+1"]
[EndTime "9:46:39 PST"]
[Termination "ExtremeLearner won by resignation"]

1. Nf3 {[%clk 0:02:56.4]} 1... d5 {[%clk 0:02:46]} 2. c4 {[%clk 0:02:53.3]} 2...
e6 {[%clk 0:02:44.7]} 3. d4 {[%clk 0:02:36.6]} 3... Nf6 {[%clk 0:02:40]} 4. Nc3
{[%clk 0:02:34.9]} 4... h6 {[%clk 0:02:34.5]} 5. Bf4 {[%clk 0:02:28.4]} 5... Bd6
{[%clk 0:02:34.2]} 6. e3 {[%clk 0:02:12.7]} 6... Bxf4 {[%clk 0:02:28.7]} 7. exf4
{[%clk 0:02:11.5]} 7... dxc4 {[%clk 0:02:29.2]} 8. Bxc4 {[%clk 0:02:10.7]} 8...
c6 {[%clk 0:02:27.5]} 9. O-O {[%clk 0:01:45.9]} 9... O-O {[%clk 0:02:27.1]} 10.
Qd3 {[%clk 0:01:35.9]} 10... Nbd7 {[%clk 0:02:24.3]} 11. a3 {[%clk 0:01:31.8]}
11... Nb6 {[%clk 0:02:19.7]} 12. Ba2 {[%clk 0:01:21.2]} 12... Nbd5 {[%clk
0:02:17.2]} 13. g3 {[%clk 0:01:20.3]} 13... g6 {[%clk 0:02:11.8]} 14. Ne5 {[%clk
0:01:18.4]} 14... Kg7 {[%clk 0:02:12]} 15. Rad1 {[%clk 0:01:17.2]} 15... h5
{[%clk 0:02:11.2]} 16. Bb1 {[%clk 0:01:16.5]} 16... Ne7 {[%clk 0:02:08]} 17. h3
{[%clk 0:01:05.6]} 17... b6 {[%clk 0:01:57.1]} 18. g4 {[%clk 0:01:01]} 18...
hxg4 {[%clk 0:01:53.6]} 19. hxg4 {[%clk 0:01:00.3]} 19... Bb7 {[%clk 0:01:53.8]}
20. f3 {[%clk 0:00:59.4]} 20... Rh8 {[%clk 0:01:43.3]} 21. Kg2 {[%clk
0:00:58.1]} 21... Nfd5 {[%clk 0:01:43.4]} 22. Ne2 {[%clk 0:00:54]} 22... a5
{[%clk 0:01:21.1]} 23. Kg3 {[%clk 0:00:49.1]} 23... Ba6 {[%clk 0:01:16.4]} 24.
Qd2 {[%clk 0:00:49.4]} 24... Bxe2 {[%clk 0:01:14.4]} 25. Qxe2 {[%clk 0:00:49.4]}
25... Rh3+ {[%clk 0:01:11.8]} 26. Kf2 {[%clk 0:00:44.4]} 26... Rh2+ {[%clk
0:01:11.7]} 27. Ke1 {[%clk 0:00:43.5]} 27... Rxe2+ {[%clk 0:01:12.2]} 28. Kxe2
{[%clk 0:00:44.4]} 28... Nxf4+ {[%clk 0:01:12.8]} 29. Ke3 {[%clk 0:00:43.7]}
29... Ned5+ {[%clk 0:01:12.4]} 30. Kf2 {[%clk 0:00:43.5]} 30... Qh4+ {[%clk
0:01:12.5]} 0-1

[Event "Early-Titled-Tuesday-Blitz-February-13-2024"]
[Site "Chess.com"]
[Date "2024.02.13"]
[Round "9"]
[White "jaskol95"]
[Black "chessdjw"]
[Result "0-1"]
[WhiteElo "2578"]
[BlackElo "2746"]
[TimeControl "180+1"]
[EndTime "9:46:41 PST"]
[Termination "chessdjw won by checkmate"]

1. e4 {[%clk 0:03:00.9]} 1... c5 {[%clk 0:02:59.4]} 2. Nf3 {[%clk 0:03:01.3]}
2... d6 {[%clk 0:02:59.4]} 3. Bb5+ {[%clk 0:03:00.7]} 3... Nd7 {[%clk
0:02:58.8]} 4. a4 {[%clk 0:03:00.8]} 4... Nf6 {[%clk 0:02:58]} 5. Nc3 {[%clk
0:03:00.8]} 5... a6 {[%clk 0:02:55.9]} 6. Bc4 {[%clk 0:03:00.4]} 6... e6 {[%clk
0:02:55.9]} 7. O-O {[%clk 0:02:56.7]} 7... Be7 {[%clk 0:02:56]} 8. d3 {[%clk
0:02:49.8]} 8... O-O {[%clk 0:02:55.4]} 9. Bf4 {[%clk 0:02:47.8]} 9... b6 {[%clk
0:02:54]} 10. Re1 {[%clk 0:02:47.3]} 10... Bb7 {[%clk 0:02:54.1]} 11. Qd2 {[%clk
0:02:46.7]} 11... Qc7 {[%clk 0:02:42.1]} 12. Rad1 {[%clk 0:02:44.6]} 12... Ne5
{[%clk 0:02:38.9]} 13. Nxe5 {[%clk 0:02:40.6]} 13... dxe5 {[%clk 0:02:39.8]} 14.
Bg3 {[%clk 0:02:40.9]} 14... Nh5 {[%clk 0:02:37.7]} 15. Ne2 {[%clk 0:02:35]}
15... h6 {[%clk 0:02:35.9]} 16. h3 {[%clk 0:02:27.4]} 16... Bg5 {[%clk
0:02:34.9]} 17. Qc3 {[%clk 0:02:25.7]} 17... Nxg3 {[%clk 0:02:30.5]} 18. Nxg3
{[%clk 0:02:17]} 18... Bc6 {[%clk 0:02:30.6]} 19. Bb3 {[%clk 0:02:15.5]} 19...
Rfd8 {[%clk 0:02:26]} 20. Nf1 {[%clk 0:02:03.1]} 20... Be8 {[%clk 0:02:12]} 21.
Ne3 {[%clk 0:01:50.7]} 21... Rd4 {[%clk 0:02:04.2]} 22. Ra1 {[%clk 0:01:45.9]}
22... h5 {[%clk 0:02:03.5]} 23. g3 {[%clk 0:01:34.6]} 23... h4 {[%clk
0:02:01.9]} 24. Kg2 {[%clk 0:01:34.5]} 24... Rad8 {[%clk 0:01:59.7]} 25. Bc4
{[%clk 0:01:28.5]} 25... Qb7 {[%clk 0:01:50.8]} 26. Ng4 {[%clk 0:01:21.7]} 26...
b5 {[%clk 0:01:42.6]} 27. axb5 {[%clk 0:01:18.7]} 27... axb5 {[%clk 0:01:42.7]}
28. Ba2 {[%clk 0:01:09.2]} 28... Qc7 {[%clk 0:01:37.9]} 29. f3 {[%clk
0:00:54.5]} 29... b4 {[%clk 0:01:32.1]} 30. Qb3 {[%clk 0:00:53.8]} 30... c4
{[%clk 0:01:32.8]} 31. dxc4 {[%clk 0:00:45.2]} 31... Rd2+ {[%clk 0:01:32.3]} 32.
Kf1 {[%clk 0:00:43.8]} 32... hxg3 {[%clk 0:01:30.5]} 33. Re2 {[%clk 0:00:43.4]}
33... Qc5 {[%clk 0:01:27]} 34. Rae1 {[%clk 0:00:40.5]} 34... Rxe2 {[%clk
0:01:24]} 35. Kxe2 {[%clk 0:00:29.2]} 35... Rd2+ {[%clk 0:01:22.2]} 36. Kf1
{[%clk 0:00:29.4]} 36... g2# {[%clk 0:01:22.9]} 0-1

[Event "Early-Titled-Tuesday-Blitz-February-13-2024"]
[Site "Chess.com"]
[Date "2024.02.13"]
[Round "9"]
[White "inagreV"]
[Black "Attacker_2006"]
[Result "1-0"]
[WhiteElo "2368"]
[BlackElo "2471"]
[TimeControl "180+1"]
[EndTime "9:46:55 PST"]
[Termination "inagreV won on time"]

1. e4 {[%clk 0:03:00.9]} 1... e5 {[%clk 0:02:52.9]} 2. Nf3 {[%clk 0:03:00.8]}
2... Nc6 {[%clk 0:02:46.2]} 3. Bc4 {[%clk 0:03:00.7]} 3... Bc5 {[%clk
0:02:40.4]} 4. O-O {[%clk 0:02:57.6]} 4... Nf6 {[%clk 0:02:39.1]} 5. d3 {[%clk
0:02:56.4]} 5... O-O {[%clk 0:02:38.1]} 6. h3 {[%clk 0:02:56]} 6... d5 {[%clk
0:02:34.4]} 7. exd5 {[%clk 0:02:55.2]} 7... Nxd5 {[%clk 0:02:33.2]} 8. Re1
{[%clk 0:02:55.5]} 8... Be6 {[%clk 0:01:48.5]} 9. Nbd2 {[%clk 0:02:28]} 9... a6
{[%clk 0:01:25]} 10. Nxe5 {[%clk 0:02:14.2]} 10... Nxe5 {[%clk 0:01:20.1]} 11.
Rxe5 {[%clk 0:02:15.1]} 11... Qf6 {[%clk 0:01:03.9]} 12. Nf3 {[%clk 0:02:13.7]}
12... Bd6 {[%clk 0:01:01.5]} 13. Rxd5 {[%clk 0:02:04]} 13... Bxd5 {[%clk
0:00:59.3]} 14. Bxd5 {[%clk 0:02:04.9]} 14... c6 {[%clk 0:00:56.3]} 15. Bb3
{[%clk 0:01:50.8]} 15... Bc5 {[%clk 0:00:25.8]} 16. d4 {[%clk 0:01:43.6]} 16...
Bd6 {[%clk 0:00:23.6]} 17. c3 {[%clk 0:01:38.4]} 17... Rae8 {[%clk 0:00:19.9]}
18. Bg5 {[%clk 0:01:34.8]} 18... Qg6 {[%clk 0:00:16.2]} 19. Bc2 {[%clk
0:01:30.7]} 19... f5 {[%clk 0:00:15.9]} 20. Qd2 {[%clk 0:01:26.9]} 20... Bc7
{[%clk 0:00:12.7]} 21. Re1 {[%clk 0:01:24.6]} 21... Rxe1+ {[%clk 0:00:08.6]} 22.
Qxe1 {[%clk 0:01:25.5]} 22... Re8 {[%clk 0:00:05.4]} 23. Qd2 {[%clk 0:01:25.3]}
23... h6 {[%clk 0:00:02.7]} 24. Bf4 {[%clk 0:01:23.7]} 24... Bxf4 {[%clk
0:00:01.8]} 25. Qxf4 {[%clk 0:01:24.3]} 25... Qe6 {[%clk 0:00:01.3]} 26. Bxf5
{[%clk 0:01:18.7]} 26... Qe2 {[%clk 0:00:01.2]} 27. Ne5 {[%clk 0:01:17.5]} 1-0

[Event "Early-Titled-Tuesday-Blitz-February-13-2024"]
[Site "Chess.com"]
[Date "2024.02.13"]
[Round "9"]
[White "dropstoneDP"]
[Black "Bauman_Guy"]
[Result "0-1"]
[WhiteElo "3049"]
[BlackElo "2899"]
[TimeControl "180+1"]
[EndTime "9:46:59 PST"]
[Termination "Bauman_Guy won by resignation"]

1. e4 {[%clk 0:03:00.9]} 1... c5 {[%clk 0:02:45.1]} 2. Nf3 {[%clk 0:02:59.9]}
2... d6 {[%clk 0:02:45.3]} 3. d4 {[%clk 0:03:00]} 3... Nf6 {[%clk 0:02:45.5]} 4.
dxc5 {[%clk 0:02:58.8]} 4... Nxe4 {[%clk 0:02:45.4]} 5. cxd6 {[%clk 0:02:58.6]}
5... Nc6 {[%clk 0:02:46.1]} 6. c3 {[%clk 0:02:58.7]} 6... Nxd6 {[%clk
0:02:41.1]} 7. Bf4 {[%clk 0:02:58.7]} 7... g6 {[%clk 0:02:40.8]} 8. Bxd6 {[%clk
0:02:55.2]} 8... exd6 {[%clk 0:02:40.7]} 9. Bc4 {[%clk 0:02:54.3]} 9... Bg7
{[%clk 0:02:39]} 10. Qe2+ {[%clk 0:02:53.9]} 10... Ne7 {[%clk 0:02:29.9]} 11.
Bb5+ {[%clk 0:02:53.3]} 11... Bd7 {[%clk 0:02:30]} 12. Bxd7+ {[%clk 0:02:53.2]}
12... Qxd7 {[%clk 0:02:30.9]} 13. O-O {[%clk 0:02:53.4]} 13... O-O {[%clk
0:02:31]} 14. Nbd2 {[%clk 0:02:53.7]} 14... d5 {[%clk 0:02:31.2]} 15. Nb3 {[%clk
0:02:53.6]} 15... Rad8 {[%clk 0:02:27.1]} 16. Rad1 {[%clk 0:02:53]} 16... Nf5
{[%clk 0:02:26.1]} 17. Nbd4 {[%clk 0:02:48.2]} 17... Rfe8 {[%clk 0:02:24.7]} 18.
Qd3 {[%clk 0:02:45.6]} 18... Nd6 {[%clk 0:02:24]} 19. Rfe1 {[%clk 0:02:39.5]}
19... Nc4 {[%clk 0:02:23]} 20. b3 {[%clk 0:02:20.2]} 20... Nb2 {[%clk
0:02:19.2]} 21. Qd2 {[%clk 0:02:02.2]} 21... Nxd1 {[%clk 0:02:17.8]} 22. Rxd1
{[%clk 0:02:03.1]} 22... Rc8 {[%clk 0:02:17.6]} 23. h3 {[%clk 0:02:01.9]} 23...
a6 {[%clk 0:02:15.5]} 24. Qd3 {[%clk 0:02:00.8]} 24... Qc7 {[%clk 0:02:13.7]}
25. Ne2 {[%clk 0:01:59.4]} 25... Qa5 {[%clk 0:02:10.3]} 26. a4 {[%clk
0:01:53.6]} 26... Bxc3 {[%clk 0:01:55.7]} 27. Nf4 {[%clk 0:01:43.9]} 27... d4
{[%clk 0:01:54.9]} 28. g4 {[%clk 0:01:37.3]} 28... Rcd8 {[%clk 0:01:44.1]} 29.
Kg2 {[%clk 0:01:35.6]} 29... Qc7 {[%clk 0:01:40.3]} 30. Ne2 {[%clk 0:01:32.7]}
30... Qc6 {[%clk 0:01:37.2]} 31. Ng3 {[%clk 0:01:24.8]} 31... Ba5 {[%clk
0:01:28]} 32. Qf1 {[%clk 0:01:06.1]} 32... Bc7 {[%clk 0:01:23.9]} 33. Rc1 {[%clk
0:00:56.6]} 33... Qd7 {[%clk 0:01:23.3]} 34. Ne2 {[%clk 0:00:45.4]} 34... d3
{[%clk 0:01:21.9]} 35. Ned4 {[%clk 0:00:45.9]} 35... Bb6 {[%clk 0:01:11.9]} 36.
Rc4 {[%clk 0:00:45.2]} 36... Bxd4 {[%clk 0:01:04]} 37. Rxd4 {[%clk 0:00:45.1]}
37... Qxd4 {[%clk 0:01:02.8]} 38. Nxd4 {[%clk 0:00:46]} 38... Rxd4 {[%clk
0:01:03.2]} 39. Qa1 {[%clk 0:00:46.2]} 39... Red8 {[%clk 0:01:03.3]} 0-1

[Event "Early-Titled-Tuesday-Blitz-February-13-2024"]
[Site "Chess.com"]
[Date "2024.02.13"]
[Round "9"]
[White "Manukyan_Artak"]
[Black "KorolDimitriy75"]
[Result "0-1"]
[WhiteElo "2530"]
[BlackElo "2431"]
[TimeControl "180+1"]
[EndTime "9:46:59 PST"]
[Termination "KorolDimitriy75 won by resignation"]

1. e4 {[%clk 0:02:53.5]} 1... c5 {[%clk 0:02:58.8]} 2. Nf3 {[%clk 0:02:53.1]}
2... d6 {[%clk 0:02:59.2]} 3. Bb5+ {[%clk 0:02:52.4]} 3... Nd7 {[%clk
0:02:59.1]} 4. O-O {[%clk 0:02:51.8]} 4... Nf6 {[%clk 0:02:57.3]} 5. Re1 {[%clk
0:02:50.9]} 5... a6 {[%clk 0:02:57.6]} 6. Bf1 {[%clk 0:02:47.9]} 6... e5 {[%clk
0:02:56.1]} 7. c4 {[%clk 0:02:46.7]} 7... Be7 {[%clk 0:02:57]} 8. d3 {[%clk
0:02:46.9]} 8... O-O {[%clk 0:02:56.4]} 9. Nc3 {[%clk 0:02:47.8]} 9... Nb8
{[%clk 0:02:49.2]} 10. a4 {[%clk 0:02:48.7]} 10... Nc6 {[%clk 0:02:49]} 11. Bg5
{[%clk 0:02:30.2]} 11... h6 {[%clk 0:02:34.6]} 12. Bh4 {[%clk 0:02:28.9]} 12...
Bg4 {[%clk 0:02:07.8]} 13. Bg3 {[%clk 0:02:29.8]} 13... Nh5 {[%clk 0:01:52.5]}
14. Be2 {[%clk 0:02:30.7]} 14... Nxg3 {[%clk 0:01:40.6]} 15. Nd5 {[%clk
0:02:31.6]} 15... Nxe2+ {[%clk 0:01:38.4]} 16. Rxe2 {[%clk 0:02:22.7]} 16...
Bxf3 {[%clk 0:01:30.9]} 17. gxf3 {[%clk 0:02:19.7]} 17... Nd4 {[%clk 0:01:25.3]}
18. Re3 {[%clk 0:02:20]} 18... Bg5 {[%clk 0:01:18.7]} 19. f4 {[%clk 0:02:20.1]}
19... Bxf4 {[%clk 0:01:14.7]} 20. Nxf4 {[%clk 0:02:19.8]} 20... exf4 {[%clk
0:01:14.9]} 21. Rh3 {[%clk 0:02:19.5]} 21... f5 {[%clk 0:00:46.6]} 22. Kh1
{[%clk 0:02:17]} 22... fxe4 {[%clk 0:00:41.8]} 23. dxe4 {[%clk 0:02:17.2]} 23...
Qe7 {[%clk 0:00:40.2]} 24. f3 {[%clk 0:02:02.8]} 24... Qe6 {[%clk 0:00:37.7]}
25. Rh4 {[%clk 0:01:59]} 25... Qxc4 {[%clk 0:00:35.4]} 26. Rg4 {[%clk
0:01:55.3]} 26... Qe2 {[%clk 0:00:28.7]} 27. Qxe2 {[%clk 0:01:46.3]} 27... Nxe2
{[%clk 0:00:29.6]} 28. Kg2 {[%clk 0:01:46.7]} 28... Rf6 {[%clk 0:00:25.6]} 29.
h4 {[%clk 0:01:45.1]} 29... Nd4 {[%clk 0:00:25]} 30. Kf2 {[%clk 0:01:44.7]}
30... Kf7 {[%clk 0:00:22.8]} 31. Rag1 {[%clk 0:01:44.6]} 31... g6 {[%clk
0:00:22.1]} 32. Rc1 {[%clk 0:01:40.4]} 32... b5 {[%clk 0:00:17.9]} 33. a5 {[%clk
0:01:39.5]} 33... b4 {[%clk 0:00:17.3]} 34. Rd1 {[%clk 0:01:32.8]} 34... Rb8
{[%clk 0:00:17.1]} 35. Ke1 {[%clk 0:01:27.3]} 35... Rb5 {[%clk 0:00:16.3]} 36.
Kd2 {[%clk 0:01:27.4]} 36... Nxf3+ {[%clk 0:00:15.9]} 37. Kd3 {[%clk 0:01:27.7]}
37... Ne5+ {[%clk 0:00:15.9]} 0-1

[Event "Early-Titled-Tuesday-Blitz-February-13-2024"]
[Site "Chess.com"]
[Date "2024.02.13"]
[Round "9"]
[White "Bigfish1995"]
[Black "SantoBlue"]
[Result "1-0"]
[WhiteElo "3169"]
[BlackElo "2972"]
[TimeControl "180+1"]
[EndTime "9:47:01 PST"]
[Termination "Bigfish1995 won by checkmate"]

1. e4 {[%clk 0:02:42.1]} 1... d6 {[%clk 0:03:00.9]} 2. d4 {[%clk 0:02:41.3]}
2... Nf6 {[%clk 0:03:00.8]} 3. Nc3 {[%clk 0:02:41.8]} 3... e5 {[%clk 0:03:00.5]}
4. Nge2 {[%clk 0:02:41]} 4... Nbd7 {[%clk 0:03:00.6]} 5. h3 {[%clk 0:02:39]}
5... Be7 {[%clk 0:02:56.6]} 6. g4 {[%clk 0:02:36.5]} 6... O-O {[%clk 0:02:56.7]}
7. Bg2 {[%clk 0:02:31.4]} 7... c6 {[%clk 0:02:57.2]} 8. a4 {[%clk 0:02:29.7]}
8... h6 {[%clk 0:02:54.1]} 9. Be3 {[%clk 0:02:17.6]} 9... Re8 {[%clk 0:02:53]}
10. Qd2 {[%clk 0:02:10.5]} 10... Nf8 {[%clk 0:02:50.8]} 11. f4 {[%clk
0:02:07.6]} 11... Ng6 {[%clk 0:02:47.2]} 12. O-O-O {[%clk 0:01:58.3]} 12... Nh4
{[%clk 0:02:36.6]} 13. Ng3 {[%clk 0:01:50]} 13... exf4 {[%clk 0:02:30.4]} 14.
Bxf4 {[%clk 0:01:49.3]} 14... Nxg2 {[%clk 0:02:30.8]} 15. Qxg2 {[%clk
0:01:48.5]} 15... d5 {[%clk 0:02:25.1]} 16. e5 {[%clk 0:01:46.7]} 16... Nh7
{[%clk 0:02:23.4]} 17. Kb1 {[%clk 0:01:45.1]} 17... b5 {[%clk 0:02:10.9]} 18.
axb5 {[%clk 0:01:44]} 18... Be6 {[%clk 0:02:10.9]} 19. bxc6 {[%clk 0:01:32.3]}
19... Qa5 {[%clk 0:02:06.1]} 20. Rd3 {[%clk 0:01:22.1]} 20... Rec8 {[%clk
0:02:05.9]} 21. Nf5 {[%clk 0:01:19.5]} 21... Bf8 {[%clk 0:02:04.4]} 22. Nxh6+
{[%clk 0:00:33.3]} 22... gxh6 {[%clk 0:02:01.2]} 23. g5 {[%clk 0:00:33.6]} 23...
Bf5 {[%clk 0:01:49.6]} 24. gxh6+ {[%clk 0:00:32.9]} 24... Kh8 {[%clk 0:01:45.5]}
25. Rg1 {[%clk 0:00:28.3]} 25... Bg6 {[%clk 0:01:45.8]} 26. e6 {[%clk
0:00:19.8]} 26... Rxc6 {[%clk 0:01:35.2]} 27. Be5+ {[%clk 0:00:20.3]} 27... Kg8
{[%clk 0:01:35.3]} 28. Qxg6+ {[%clk 0:00:20.7]} 28... fxg6 {[%clk 0:01:34.7]}
29. Rxg6+ {[%clk 0:00:21.1]} 29... Bg7 {[%clk 0:01:35.1]} 30. Rf3 {[%clk
0:00:18.4]} 30... Rxe6 {[%clk 0:01:30.1]} 31. Rxg7+ {[%clk 0:00:13]} 31... Kh8
{[%clk 0:01:30.7]} 32. Rff7 {[%clk 0:00:08.1]} 32... Rxe5 {[%clk 0:01:23.3]} 33.
Rxh7+ {[%clk 0:00:08.6]} 33... Kg8 {[%clk 0:01:23.9]} 34. Rfg7+ {[%clk
0:00:09.3]} 34... Kf8 {[%clk 0:01:24.6]} 35. Rh8# {[%clk 0:00:10.1]} 1-0

[Event "Early-Titled-Tuesday-Blitz-February-13-2024"]
[Site "Chess.com"]
[Date "2024.02.13"]
[Round "9"]
[White "blitzking1729"]
[Black "TigrVShlyape"]
[Result "1-0"]
[WhiteElo "2729"]
[BlackElo "2852"]
[TimeControl "180+1"]
[EndTime "9:47:08 PST"]
[Termination "blitzking1729 won by resignation"]

1. c4 {[%clk 0:03:00.9]} 1... f5 {[%clk 0:02:59.3]} 2. Nc3 {[%clk 0:03:00.6]}
2... Nf6 {[%clk 0:02:59.6]} 3. d4 {[%clk 0:02:59.5]} 3... e6 {[%clk 0:02:59.3]}
4. a3 {[%clk 0:02:58.8]} 4... g6 {[%clk 0:02:58.5]} 5. h4 {[%clk 0:02:58.2]}
5... Bg7 {[%clk 0:02:58.1]} 6. h5 {[%clk 0:02:58.5]} 6... Nxh5 {[%clk 0:02:58]}
7. e4 {[%clk 0:02:58.6]} 7... Nf6 {[%clk 0:02:45.7]} 8. e5 {[%clk 0:02:56.8]}
8... Ng8 {[%clk 0:02:42.4]} 9. Nf3 {[%clk 0:02:55.5]} 9... Nc6 {[%clk
0:02:33.3]} 10. Bg5 {[%clk 0:02:46.9]} 10... Nce7 {[%clk 0:02:30.7]} 11. d5
{[%clk 0:02:43]} 11... h6 {[%clk 0:02:28.2]} 12. Be3 {[%clk 0:02:30.3]} 12... a6
{[%clk 0:02:16.9]} 13. Qc2 {[%clk 0:02:23.1]} 13... d6 {[%clk 0:01:42]} 14.
O-O-O {[%clk 0:02:20.4]} 14... exd5 {[%clk 0:01:41.5]} 15. exd6 {[%clk
0:02:15.8]} 15... cxd6 {[%clk 0:01:38.1]} 16. cxd5 {[%clk 0:02:01]} 16... Bd7
{[%clk 0:01:34.6]} 17. Kb1 {[%clk 0:01:59.6]} 17... Nf6 {[%clk 0:01:28.2]} 18.
Qb3 {[%clk 0:01:52.4]} 18... b5 {[%clk 0:01:26.6]} 19. Nd4 {[%clk 0:01:52]}
19... Ng4 {[%clk 0:01:24.5]} 20. Nc6 {[%clk 0:01:40.7]} 20... Qc7 {[%clk
0:01:10.8]} 21. Bxb5 {[%clk 0:01:26.3]} 21... Nxe3 {[%clk 0:01:06.7]} 22. fxe3
{[%clk 0:01:26]} 22... Bxc6 {[%clk 0:00:44.9]} 23. Bxc6+ {[%clk 0:01:21.6]}
23... Nxc6 {[%clk 0:00:44.3]} 24. dxc6 {[%clk 0:01:21.5]} 24... Bxc3 {[%clk
0:00:37.5]} 25. Qxc3 {[%clk 0:01:20.4]} 25... O-O-O {[%clk 0:00:34.7]} 26. Rh4
{[%clk 0:01:12.2]} 26... Rhe8 {[%clk 0:00:29.7]} 27. Rb4 {[%clk 0:01:09.5]}
27... Re5 {[%clk 0:00:24.9]} 28. Rb7 {[%clk 0:01:02.7]} 28... Qa5 {[%clk
0:00:25]} 29. Qb3 {[%clk 0:01:02.6]} 29... Rde8 {[%clk 0:00:17]} 30. Rb8+ {[%clk
0:01:00.3]} 1-0

[Event "Early-Titled-Tuesday-Blitz-February-13-2024"]
[Site "Chess.com"]
[Date "2024.02.13"]
[Round "9"]
[White "Rozhkov_V"]
[Black "kleopl"]
[Result "0-1"]
[WhiteElo "2401"]
[BlackElo "2536"]
[TimeControl "180+1"]
[EndTime "9:47:12 PST"]
[Termination "kleopl won by resignation"]

1. e4 {[%clk 0:03:00.6]} 1... c5 {[%clk 0:02:59.3]} 2. Nf3 {[%clk 0:03:00.7]}
2... d6 {[%clk 0:02:58.4]} 3. d4 {[%clk 0:03:00.4]} 3... cxd4 {[%clk 0:02:59.3]}
4. Nxd4 {[%clk 0:03:01.3]} 4... Nf6 {[%clk 0:02:59.6]} 5. Nc3 {[%clk 0:03:01.8]}
5... a6 {[%clk 0:03:00]} 6. h3 {[%clk 0:03:00.5]} 6... e5 {[%clk 0:02:59.2]} 7.
Nf3 {[%clk 0:03:00.9]} 7... Be7 {[%clk 0:02:58.2]} 8. g4 {[%clk 0:03:00.3]} 8...
h6 {[%clk 0:02:57]} 9. Rg1 {[%clk 0:03:00.7]} 9... b5 {[%clk 0:02:36.6]} 10. g5
{[%clk 0:03:00.7]} 10... hxg5 {[%clk 0:02:35.3]} 11. Nxg5 {[%clk 0:03:01.6]}
11... Nbd7 {[%clk 0:02:27.2]} 12. Be3 {[%clk 0:02:59.3]} 12... Nb6 {[%clk
0:02:20.7]} 13. a4 {[%clk 0:02:40]} 13... b4 {[%clk 0:02:08.9]} 14. a5 {[%clk
0:02:40.2]} 14... Nbd7 {[%clk 0:02:01.3]} 15. Bc4 {[%clk 0:02:39.6]} 15... Rf8
{[%clk 0:01:52.8]} 16. Nd5 {[%clk 0:02:36.5]} 16... Bb7 {[%clk 0:01:50.7]} 17.
Nxe7 {[%clk 0:02:11.7]} 17... Qxe7 {[%clk 0:01:46.8]} 18. Qf3 {[%clk 0:02:11.6]}
18... O-O-O {[%clk 0:01:14.9]} 19. O-O-O {[%clk 0:02:09.9]} 19... Kb8 {[%clk
0:00:57.1]} 20. Qe2 {[%clk 0:02:07.8]} 20... Nxe4 {[%clk 0:00:45.7]} 21. Nxe4
{[%clk 0:02:02.5]} 21... Bxe4 {[%clk 0:00:46.6]} 22. Bxa6 {[%clk 0:02:03.1]}
22... Nf6 {[%clk 0:00:31.1]} 23. Bb6 {[%clk 0:01:52]} 23... Rc8 {[%clk 0:00:27]}
24. Bxc8 {[%clk 0:01:46.4]} 24... Rxc8 {[%clk 0:00:27.9]} 25. Rd2 {[%clk
0:01:47]} 25... b3 {[%clk 0:00:20]} 26. Qb5 {[%clk 0:01:37.1]} 26... Bxc2 {[%clk
0:00:16.4]} 27. Rxc2 {[%clk 0:01:17.5]} 27... Rxc2+ {[%clk 0:00:15.5]} 28. Kb1
{[%clk 0:01:18.2]} 28... Qb7 {[%clk 0:00:14.4]} 29. Rxg7 {[%clk 0:01:14]} 29...
Qh1+ {[%clk 0:00:13.3]} 0-1

[Event "Early-Titled-Tuesday-Blitz-February-13-2024"]
[Site "Chess.com"]
[Date "2024.02.13"]
[Round "9"]
[White "Viktor_Poddubnyi"]
[Black "AsaHoffmann"]
[Result "0-1"]
[WhiteElo "2269"]
[BlackElo "2425"]
[TimeControl "180+1"]
[EndTime "9:47:17 PST"]
[Termination "AsaHoffmann won on time"]

1. e4 {[%clk 0:03:00.9]} 1... d6 {[%clk 0:02:10]} 2. d4 {[%clk 0:03:00.2]} 2...
Nf6 {[%clk 0:02:09.1]} 3. Nc3 {[%clk 0:03:00.4]} 3... c6 {[%clk 0:02:08.4]} 4.
a4 {[%clk 0:02:58.5]} 4... Qa5 {[%clk 0:02:06.6]} 5. Bd3 {[%clk 0:02:42.6]} 5...
e5 {[%clk 0:02:06.2]} 6. Ne2 {[%clk 0:02:38]} 6... Be7 {[%clk 0:02:05.4]} 7. O-O
{[%clk 0:02:37.3]} 7... O-O {[%clk 0:02:05.3]} 8. b4 {[%clk 0:02:30.3]} 8... Qc7
{[%clk 0:01:58.3]} 9. Bb2 {[%clk 0:02:08.2]} 9... Nbd7 {[%clk 0:01:54.1]} 10. h3
{[%clk 0:02:05.7]} 10... Re8 {[%clk 0:01:52.7]} 11. f4 {[%clk 0:02:01.9]} 11...
Bf8 {[%clk 0:01:52.3]} 12. b5 {[%clk 0:01:36.9]} 12... c5 {[%clk 0:01:49.5]} 13.
dxe5 {[%clk 0:01:05.6]} 13... dxe5 {[%clk 0:01:38.4]} 14. Nd5 {[%clk 0:00:58.6]}
14... Nxd5 {[%clk 0:01:28.6]} 15. exd5 {[%clk 0:00:59.5]} 15... e4 {[%clk
0:01:24.4]} 16. Bc4 {[%clk 0:00:52]} 16... Nb6 {[%clk 0:01:23.9]} 17. Ba2 {[%clk
0:00:31.9]} 17... c4 {[%clk 0:01:21.5]} 18. Nc3 {[%clk 0:00:15.7]} 18... Bf5
{[%clk 0:01:18.6]} 19. Qe2 {[%clk 0:00:13.2]} 19... Rad8 {[%clk 0:01:17.3]} 20.
Rad1 {[%clk 0:00:11.6]} 20... Qc5+ {[%clk 0:01:10.4]} 21. Kh1 {[%clk 0:00:10.6]}
21... Rc8 {[%clk 0:01:02.6]} 22. g4 {[%clk 0:00:10.1]} 22... Bd7 {[%clk
0:01:01.4]} 23. Nxe4 {[%clk 0:00:10.5]} 23... Qb4 {[%clk 0:00:53.1]} 24. Ba1
{[%clk 0:00:01]} 24... Qxa4 {[%clk 0:00:50.9]} 0-1